bitfinex-derivatives/quotes_BTCF0:USTF0_20250919
["timestamp","ask_amount","ask_price","bid_price","bid_amount"]
[1758303052046,1.29338146,115840.0,115830.0,0.11109329]
[1758303052246,1.63144823,115840.0,115830.0,0.11109329]
[1758303052946,0.50654146,115840.0,115830.0,0.11109329]
[1758303053153,1.29330146,115840.0,115830.0,0.11109329]
[1758303057353,1.29330146,115840.0,115830.0,0.08804329]
[1758303057757,1.63136823,115840.0,115830.0,0.08804329]
[1758303058555,1.63136823,115840.0,115830.0,0.07921856]
[1758303060055,1.29330146,115840.0,115830.0,0.07921856]
[1758303060251,1.63136823,115840.0,115830.0,0.07921856]
[1758303060453,2.22816185,115840.0,115830.0,0.01]
[1758303060651,1.89009508,115840.0,115830.0,0.01]
[1758303063958,1.10333508,115840.0,115830.0,0.01]
[1758303064160,1.89005508,115840.0,115830.0,0.01]
[1758303064661,1.10333508,115840.0,115830.0,0.01]
[1758303064851,1.89001508,115840.0,115830.0,0.01]
[1758303065156,1.10333508,115840.0,115830.0,0.01]
[1758303065360,1.88132823,115840.0,115830.0,0.01]
[1758303065958,1.09460823,115840.0,115830.0,0.01]
[1758303066260,1.88132823,115840.0,115830.0,0.01]
[1758303067659,1.89000477,115840.0,115830.0,0.01]
[1758303071063,2.25080477,115840.0,115830.0,0.01]
[1758303072265,4.06940477,115840.0,115830.0,0.01]
[1758303074867,0.1223819,115830.0,115820.0,0.02010987]
[1758303075058,1.15931544,115830.0,115820.0,0.02000987]
[1758303075254,0.82124867,115830.0,115820.0,0.02000987]
[1758303076466,0.82624867,115830.0,115820.0,0.02500987]
[1758303078670,1.95099544,115830.0,115820.0,0.02500987]
[1758303080668,1.95099544,115830.0,115820.0,7e-08]
[1758303083771,1.2748619,115830.0,115820.0,7e-08]
[1758303084069,1.95531544,115830.0,115820.0,7e-08]
[1758303085873,1.16431544,115830.0,115820.0,7e-08]
[1758303086073,1.95519544,115830.0,115820.0,7e-08]
[1758303091485,2.31599544,115830.0,115820.0,7e-08]
[1758303093580,2.56599544,115830.0,115820.0,7e-08]
[1758303093779,0.1228896,115820.0,115810.0,0.0001]
[1758303093980,0.122897,115810.0,115800.0,0.0001]
[1758303094281,0.0996019,115790.0,115780.0,1.11624609]
[1758303094480,0.8912419,115790.0,115780.0,1.11624609]
[1758303095382,0.9145519,115790.0,115780.0,0.96091013]
[1758303095583,0.9205519,115790.0,115780.0,0.98198013]
[1758303095981,0.1289119,115790.0,115780.0,0.98198013]
[1758303096177,0.9205119,115790.0,115780.0,1.13731609]
[1758303096384,0.1289119,115790.0,115780.0,1.14596373]
[1758303096690,0.9202719,115790.0,115780.0,1.14596373]
[1758303097087,0.9222719,115790.0,115780.0,0.99062777]
[1758303097391,0.9222719,115790.0,115780.0,1.05970358]
[1758303099987,1.26033867,115790.0,115780.0,0.11911291]
[1758303100383,1.62113867,115790.0,115780.0,0.09804291]
[1758303100581,1.62113867,115790.0,115780.0,0.0289671]
[1758303101194,1.62113867,115790.0,115780.0,0.02031946]
[1758303101981,1.62113867,115790.0,115780.0,0.09047253]
[1758303102183,1.62113867,115790.0,115780.0,0.04138946]
[1758303102387,1.62113867,115790.0,115780.0,0.04991931]
[1758303102589,1.62113867,115790.0,115780.0,0.02884931]
[1758303104002,0.4917119,115790.0,115780.0,0.04991931]
[1758303104198,1.2825919,115790.0,115780.0,0.38798608]
[1758303104391,1.2825919,115790.0,115780.0,0.04991931]
[1758303104597,1.62065867,115790.0,115780.0,0.04138946]
[1758303104791,1.62065867,115790.0,115780.0,0.02031946]
[1758303105905,1.62101489,115790.0,115780.0,0.35874245]
[1758303106205,0.1309119,115790.0,115780.0,0.71823544]
[1758303106398,0.9105119,115790.0,115780.0,1.06851464]
[1758303107099,0.1176319,115790.0,115780.0,1.07735065]
[1758303107301,0.9106319,115790.0,115780.0,1.07735065]
[1758303108603,0.1176319,115790.0,115780.0,1.07735065]
[1758303109101,0.9237919,115790.0,115780.0,1.07735065]
[1758303109404,0.9237919,115790.0,115780.0,0.40050467]
[1758303109596,0.9237919,115790.0,115780.0,1.07735065]
[1758303109798,0.9237919,115790.0,115780.0,0.99102145]
[1758303110001,0.9237919,115790.0,115780.0,0.97707145]
[1758303110194,0.9237919,115790.0,115780.0,1.06340035]
[1758303111894,0.1309119,115790.0,115780.0,1.06340035]
[1758303112202,0.9236719,115790.0,115780.0,1.06340035]
[1758303113102,0.1309119,115790.0,115780.0,1.06340035]
[1758303113505,0.03131,115790.0,115780.0,1.18722035]
[1758303113804,0.1176314,115790.0,115780.0,1.18722035]
[1758303113998,0.9102314,115790.0,115780.0,1.18722035]
[1758303114401,0.9102314,115790.0,115780.0,0.14957437]
[1758303114601,0.9238614,115790.0,115780.0,0.81340035]
[1758303115401,0.9238614,115790.0,115780.0,0.72707145]
[1758303115602,1.26228439,115790.0,115780.0,0.37981245]
[1758303116002,1.62308439,115790.0,115780.0,0.37981245]
[1758303118506,1.62308439,115790.0,115780.0,0.04138946]
[1758303118708,1.62308439,115790.0,115780.0,0.02031946]
[1758303119120,1.87308439,115790.0,115780.0,0.02031946]
[1758303119303,1.87308439,115790.0,115780.0,0.35874245]
[1758303119802,1.87308439,115790.0,115780.0,0.02031946]
[1758303120004,1.87308439,115790.0,115780.0,0.35874245]
[1758303120204,1.87308439,115790.0,115780.0,0.04175946]
[1758303120405,1.87308439,115790.0,115780.0,0.38018245]
[1758303120617,1.87368439,115790.0,115780.0,0.38018245]
[1758303121011,1.08048439,115790.0,115780.0,0.38018245]
[1758303121207,1.2850214,115790.0,115780.0,0.71860544]
[1758303121406,0.4920614,115790.0,115780.0,0.73174544]
[1758303121620,0.9245014,115790.0,115780.0,0.73174544]
[1758303121803,0.1312614,115790.0,115780.0,0.73174544]
[1758303122006,0.1312614,115790.0,115780.0,0.81807494]
[1758303122816,0.9247414,115790.0,115780.0,0.81807494]
[1758303123211,0.9247414,115790.0,115780.0,0.73174544]
[1758303123418,1.2855414,115790.0,115780.0,0.71860544]
[1758303123720,1.2855414,115790.0,115780.0,0.04175946]
[1758303123915,1.2855414,115790.0,115780.0,0.71860544]
[1758303125413,1.62396439,115790.0,115780.0,0.04175946]
[1758303125615,1.62396439,115790.0,115780.0,0.02031946]
[1758303125813,0.1222294,115780.0,115770.0,0.42852681]
[1758303126017,0.82145239,115780.0,115770.0,0.42842681]
[1758303127014,0.82345239,115780.0,115770.0,0.42842681]
[1758303127818,0.82345239,115780.0,115770.0,0.09000382]
[1758303128018,0.82345239,115780.0,115770.0,0.42842681]
[1758303128419,0.82945239,115780.0,115770.0,0.42842681]
[1758303129220,0.4910294,115780.0,115770.0,0.42842681]
[1758303129416,0.82945239,115780.0,115770.0,0.42842681]
[1758303132626,0.4910294,115780.0,115770.0,0.42842681]
[1758303132810,0.82945239,115780.0,115770.0,0.42842681]
[1758303134310,1.62225239,115780.0,115770.0,0.42842681]
[1758303134511,1.62225239,115780.0,115770.0,0.09000382]
[1758303134718,1.96067538,115780.0,115770.0,0.17729562]
[1758303135216,1.96067538,115780.0,115770.0,0.11176652]
[1758303135420,1.96067538,115780.0,115770.0,0.03165022]
[1758303135622,1.96067538,115780.0,115770.0,2e-08]
[1758303135813,0.0863369,115770.0,115760.0,1.76883833]
[1758303136021,0.79875989,115770.0,115760.0,1.76873833]
[1758303136527,0.82145989,115770.0,115760.0,0.38017833]
[1758303136827,0.82145989,115770.0,115760.0,0.4498117]
[1758303137029,0.83045989,115770.0,115760.0,1.8598117]
[1758303140730,0.83045989,115770.0,115760.0,1.47963337]
[1758303140927,0.83045989,115770.0,115760.0,0.06963337]
[1758303141128,0.1222443,115760.0,115750.0,0.36877481]
[1758303141323,0.82146729,115760.0,115750.0,0.36867481]
[1758303141530,0.82146729,115760.0,115750.0,1.77867481]
[1758303141928,1.61330729,115760.0,115750.0,1.77867481]
[1758303142231,1.61330729,115760.0,115750.0,1.76986299]
[1758303142735,1.62230729,115760.0,115750.0,1.76986299]
[1758303143033,1.2839243,115760.0,115750.0,1.76986299]
[1758303143335,1.62234729,115760.0,115750.0,1.43144]
[1758303143831,1.62234729,115760.0,115750.0,1.76986299]
[1758303144030,1.62222729,115760.0,115750.0,1.76986299]
[1758303144834,0.4920443,115760.0,115750.0,1.76986299]
[1758303145035,1.62234729,115760.0,115750.0,1.76986299]
[1758303145533,1.62226729,115760.0,115750.0,1.76986299]
[1758303145727,0.83046729,115760.0,115750.0,1.76986299]
[1758303145927,1.2837643,115760.0,115750.0,1.76986299]
[1758303146132,1.2837643,115760.0,115750.0,1.83840412]
[1758303146133,1.2837243,115760.0,115750.0,1.83840412]
[1758303146435,1.2837243,115760.0,115750.0,1.49998113]
[1758303146629,1.62214729,115760.0,115750.0,1.83840412]
[1758303148237,0.83046729,115760.0,115750.0,1.83840412]
[1758303148438,1.62202729,115760.0,115750.0,1.83840412]
[1758303148840,0.83046729,115760.0,115750.0,1.83840412]
[1758303149135,1.62218729,115760.0,115750.0,1.83840412]
[1758303149333,0.4920443,115760.0,115750.0,1.83840412]
[1758303149534,1.62210729,115760.0,115750.0,1.83840412]
[1758303150441,0.83046729,115760.0,115750.0,1.83840412]
[1758303150842,1.62194729,115760.0,115750.0,1.83840412]
[1758303151248,1.2834843,115760.0,115750.0,1.83840412]
[1758303151542,1.2834443,115760.0,115750.0,1.83840412]
[1758303151745,0.4920443,115760.0,115750.0,1.83840412]
[1758303152439,1.2835243,115760.0,115750.0,1.83840412]
[1758303153036,0.4920443,115760.0,115750.0,1.83840412]
[1758303153239,1.2703243,115760.0,115750.0,1.85189412]
[1758303153637,0.4921843,115760.0,115750.0,1.85189412]
[1758303153837,1.2837443,115760.0,115750.0,1.85189412]
[1758303154051,0.4921843,115760.0,115750.0,1.85189412]
[1758303154249,0.4921843,115760.0,115750.0,1.83840412]
[1758303154743,1.2837043,115760.0,115750.0,1.83840412]
[1758303154946,1.2836643,115760.0,115750.0,1.83840412]
[1758303155146,0.4921843,115760.0,115750.0,1.85189412]
[1758303155346,1.2836243,115760.0,115750.0,1.85189412]
[1758303155846,1.2836243,115760.0,115750.0,1.83840412]
[1758303157246,0.9228243,115760.0,115750.0,1.83840412]
[1758303157551,0.9096043,115760.0,115750.0,2.19031711]
[1758303157844,0.1180443,115760.0,115750.0,2.19031711]
[1758303158152,0.9095643,115760.0,115750.0,2.19031711]
[1758303158845,0.9095643,115760.0,115750.0,2.27666891]
[1758303159546,0.1180443,115760.0,115750.0,2.52666891]
[1758303159745,0.80064,115760.0,115750.0,2.88746891]
[1758303160554,0.009,115760.0,115750.0,3.2258919]
[1758303160939,0.009,115760.0,115750.0,3.04286891]
[1758303161144,0.009,115760.0,115750.0,3.83438891]
[1758303161344,0.009,115760.0,115750.0,3.04286891]
[1758303161546,0.009,115760.0,115750.0,4.07304726]
[1758303162554,0.009,115760.0,115750.0,4.25184726]
[1758303163455,0.009,115760.0,115750.0,3.46036726]
[1758303163653,0.009,115760.0,115750.0,4.25180726]
[1758303164357,0.009,115760.0,115750.0,3.46036726]
[1758303164752,0.009,115760.0,115750.0,4.25144726]
[1758303164949,0.0953442,115760.0,115750.0,3.46036726]
[1758303165258,0.0953442,115760.0,115750.0,3.35172479]
[1758303167759,0.0953442,115760.0,115750.0,3.01333478]
[1758303169160,0.0953442,115760.0,115750.0,2.76333478]
[1758303170561,0.0953442,115760.0,115750.0,2.42487881]
[1758303170860,0.0953442,115760.0,115750.0,2.76333478]
[1758303172158,0.009,115760.0,115750.0,2.76333478]
[1758303172356,0.0953442,115760.0,115750.0,2.76333478]
[1758303172860,0.0953442,115760.0,115750.0,2.58453478]
[1758303176661,0.0953442,115760.0,115750.0,2.69317725]
[1758303177666,0.095344,115760.0,115750.0,2.69317725]
[1758303177866,0.009,115760.0,115750.0,2.69317725]
[1758303178060,0.009,115760.0,115750.0,2.56312137]
[1758303178467,0.095344,115760.0,115750.0,2.56312137]
[1758303179167,0.095344,115760.0,115750.0,2.4544789]
[1758303180262,0.095344,115760.0,115750.0,2.58598545]
[1758303181062,0.009,115760.0,115750.0,2.58598545]
[1758303182365,0.009,115760.0,115750.0,2.69462792]
[1758303183967,0.009,115760.0,115750.0,3.48438792]
[1758303184575,0.009,115760.0,115750.0,2.69462792]
[1758303184775,0.009,115760.0,115750.0,3.48418792]
[1758303184978,0.009,115760.0,115750.0,3.48414792]
[1758303186076,0.0953444,115760.0,115750.0,3.48414792]
[1758303186477,0.0953444,115760.0,115750.0,3.37550545]
[1758303187375,0.009,115760.0,115750.0,3.37530545]
[1758303188772,0.009,115760.0,115750.0,3.48394792]
[1758303196186,0.009,115760.0,115750.0,3.37442545]
[1758303196578,0.0953443,115760.0,115750.0,2.58598545]
[1758303196989,0.0953443,115760.0,115750.0,2.74143151]
[1758303198188,0.009,115760.0,115750.0,2.74143151]
[1758303199291,0.009,115760.0,115750.0,3.07988748]
[1758303199485,0.10385734,115770.0,115760.0,0.1220539]
[1758303199788,0.12530734,115770.0,115760.0,0.82130987]
[1758303201090,0.12730734,115770.0,115760.0,0.82230987]
[1758303201593,0.13430734,115770.0,115760.0,0.4838539]
[1758303201793,0.13430734,115770.0,115760.0,1.16076584]
[1758303202090,0.11285734,115770.0,115760.0,0.82230987]
[1758303202885,0.02652094,115770.0,115760.0,0.82230987]
[1758303203190,0.11285734,115770.0,115760.0,1.16076584]
[1758303203691,0.11285734,115770.0,115760.0,1.26957834]
[1758303203991,0.13430734,115770.0,115760.0,1.26957834]
[1758303204186,0.02652094,115770.0,115760.0,1.26957834]
[1758303204491,0.009,115770.0,115760.0,1.16076584]
[1758303204891,0.009,115770.0,115760.0,1.41076584]
[1758303205091,0.009,115770.0,115760.0,1.5662119]
[1758303205494,0.009,115770.0,115760.0,1.67498442]
[1758303205686,0.0864219,115790.0,115780.0,0.2758094]
[1758303205891,0.0863219,115790.0,115780.0,1.10359299]
[1758303207087,0.3494619,115790.0,115780.0,1.00462359]
[1758303207292,1.07167787,115790.0,115780.0,0.28561252]
[1758303207494,1.08896856,115790.0,115780.0,0.02144]
[1758303207890,0.75251259,115790.0,115780.0,0.02444]
[1758303208091,0.75851259,115790.0,115780.0,0.03044]
[1758303208292,1.09696856,115790.0,115780.0,0.11767613]
[1758303209703,1.09696856,115790.0,115780.0,0.009]
[1758303213102,0.75851259,115790.0,115780.0,0.03044]
[1758303213301,1.55031259,115790.0,115780.0,0.03044]
[1758303215405,1.56231259,115790.0,115780.0,0.03044]
[1758303215708,1.31231259,115790.0,115780.0,0.36889597]
[1758303215907,1.31231259,115790.0,115780.0,0.03044]
[1758303216210,1.31231259,115790.0,115780.0,0.36889597]
[1758303216612,1.31227259,115790.0,115780.0,0.4775721]
[1758303216908,1.31227259,115790.0,115780.0,0.13911613]
[1758303217311,1.31227259,115790.0,115780.0,0.03044]
[1758303217502,0.50851259,115790.0,115780.0,0.009]
[1758303217903,1.31179259,115790.0,115780.0,0.03044]
[1758303218808,1.31183259,115790.0,115780.0,0.03044]
[1758303219008,1.31159259,115790.0,115780.0,0.03044]
[1758303220211,0.50851259,115790.0,115780.0,0.03044]
[1758303220410,1.31159259,115790.0,115780.0,0.03044]
[1758303221198,0.50851259,115790.0,115780.0,0.03044]
[1758303221402,1.31111259,115790.0,115780.0,0.03044]
[1758303222611,0.50851259,115790.0,115780.0,0.03044]
[1758303222807,1.31079259,115790.0,115780.0,0.03044]
[1758303223412,0.50851259,115790.0,115780.0,0.03044]
[1758303223612,1.31067259,115790.0,115780.0,0.36889597]
[1758303225917,1.31067259,115790.0,115780.0,0.03044]
[1758303226717,1.31067259,115790.0,115780.0,0.36889597]
[1758303228617,0.50851259,115790.0,115780.0,0.36889597]
[1758303228817,1.31039259,115790.0,115780.0,0.45522507]
[1758303229031,1.31039259,115790.0,115780.0,0.36889597]
[1758303229716,1.31039259,115790.0,115780.0,0.70718272]
[1758303232618,1.64876395,115790.0,115780.0,0.70718272]
[1758303233921,1.31039259,115790.0,115780.0,0.70718272]
[1758303234820,1.31039259,115790.0,115780.0,0.36881136]
[1758303235323,1.64784395,115790.0,115780.0,0.36881136]
[1758303235624,1.64784395,115790.0,115780.0,0.70718272]
[1758303235816,1.28704395,115790.0,115780.0,0.70718272]
[1758303236018,1.30947259,115790.0,115780.0,0.70718272]
[1758303236219,0.0943219,115790.0,115780.0,1.39450308]
[1758303236422,0.008,115790.0,115780.0,1.75530308]
[1758303236717,0.80912,115790.0,115780.0,1.75530308]
[1758303236917,0.80912,115790.0,115780.0,1.91070308]
[1758303237318,0.80912,115790.0,115780.0,2.06614914]
[1758303238616,0.80936,115790.0,115780.0,2.06614914]
[1758303239024,0.80936,115790.0,115780.0,1.91070308]
[1758303239213,0.80936,115790.0,115780.0,2.06579763]
[1758303240327,0.809,115790.0,115780.0,2.06579763]
[1758303240925,0.809,115790.0,115780.0,1.91070308]
[1758303244624,0.8953216,115790.0,115780.0,1.57233172]
[1758303244831,0.9164416,115790.0,115780.0,0.645589]
[1758303245022,1.26784296,115790.0,115780.0,0.52421136]
[1758303245326,1.26784296,115790.0,115780.0,0.63269506]
[1758303245627,0.9294716,115790.0,115780.0,0.86258272]
[1758303245821,1.26784296,115790.0,115780.0,0.52421136]
[1758303246030,1.89603955,115790.0,115780.0,0.52421136]
[1758303246324,1.89603955,115790.0,115780.0,0.50277136]
[1758303246718,1.89603955,115790.0,115780.0,0.52504136]
[1758303247130,1.09503955,115790.0,115780.0,0.52504136]
[1758303247320,0.73423955,115790.0,115780.0,0.52504136]
[1758303247520,1.89631955,115790.0,115780.0,0.52504136]
[1758303248925,0.75666819,115790.0,115780.0,0.86341272]
[1758303249133,1.19678819,115790.0,115780.0,0.86341272]
[1758303249831,0.39586819,115790.0,115780.0,0.86341272]
[1758303250129,1.19678819,115790.0,115780.0,0.86341272]
[1758303250330,0.39586819,115790.0,115780.0,0.86341272]
[1758303250531,1.19674819,115790.0,115780.0,0.86341272]
[1758303250724,1.55754819,115790.0,115780.0,0.97189512]
[1758303251032,1.19674819,115790.0,115780.0,1.05822412]
[1758303251225,1.19662819,115790.0,115780.0,0.86341272]
[1758303252730,1.53499955,115790.0,115780.0,0.52504136]
[1758303253323,1.53499955,115790.0,115780.0,0.86341272]
[1758303253628,1.89579955,115790.0,115780.0,0.86341272]
[1758303255726,1.89579955,115790.0,115780.0,0.36964136]
[1758303256635,1.89579955,115790.0,115780.0,0.009]
[1758303256927,1.89579955,115790.0,115780.0,0.11751242]
[1758303257837,1.89579955,115790.0,115780.0,0.009]
[1758303264639,1.89427955,115790.0,115780.0,0.009]
[1758303265038,1.64427955,115790.0,115780.0,0.009]
[1758303265239,0.84503955,115790.0,115780.0,0.009]
[1758303265442,1.64399955,115790.0,115780.0,0.009]
[1758303265641,0.84503955,115790.0,115780.0,0.009]
[1758303265839,1.64391955,115790.0,115780.0,0.009]
[1758303267034,0.84503955,115790.0,115780.0,0.009]
[1758303267233,1.30526819,115790.0,115780.0,0.70730272]
[1758303267433,1.64363955,115790.0,115780.0,0.36893136]
[1758303267633,1.64363955,115790.0,115780.0,0.70730272]
[1758303267634,0.84503955,115790.0,115780.0,0.70730272]
[1758303267830,1.30518819,115790.0,115780.0,0.70730272]
[1758303268344,1.30514819,115790.0,115780.0,0.36893136]
[1758303268737,1.64351955,115790.0,115780.0,0.36893136]
[1758303272945,1.64279955,115790.0,115780.0,0.36893136]
[1758303276536,1.64279955,115790.0,115780.0,0.34737136]
[1758303276744,1.64279955,115790.0,115780.0,0.009]
[1758303277047,1.64279955,115790.0,115780.0,0.01559]
[1758303277846,1.64207955,115790.0,115780.0,0.01559]
[1758303278047,1.64207955,115790.0,115780.0,0.37552136]
[1758303280448,0.50666819,115790.0,115780.0,0.37552136]
[1758303280660,1.30330819,115790.0,115780.0,0.37552136]
[1758303280853,1.64167955,115790.0,115780.0,0.37552136]
[1758303281151,1.30330819,115790.0,115780.0,0.37552136]
[1758303281450,1.64167955,115790.0,115780.0,0.37552136]
[1758303283553,1.62428296,115790.0,115780.0,0.37552136]
[1758303284556,1.64196427,115790.0,115780.0,0.37552136]
[1758303285251,1.64196427,115790.0,115780.0,0.03715]
[1758303285449,1.64196427,115790.0,115780.0,0.37552136]
[1758303285656,1.64196427,115790.0,115780.0,0.01559]
[1758303285851,1.64196427,115790.0,115780.0,0.35396136]
[1758303286957,1.64210477,115790.0,115780.0,0.35396136]
[1758303288660,1.62428296,115790.0,115780.0,0.01559]
[1758303288957,0.1213392,115780.0,115770.0,2e-08]
[1758303289150,0.1213392,115780.0,115740.0,0.0001]
[1758303289151,0.1213616,115750.0,115740.0,0.0001]
[1758303289353,0.1213691,115740.0,115730.0,0.56087895]
[1758303289549,0.1213691,115740.0,115730.0,0.09199063]
[1758303289550,0.82054046,115740.0,115730.0,0.09199063]
[1758303289748,0.4821691,115740.0,115730.0,0.09199063]
[1758303290058,0.4821691,115740.0,115730.0,2.09069496]
[1758303290255,1.2804491,115740.0,115730.0,2.09069496]
[1758303290451,0.4761691,115740.0,115730.0,2.09069496]
[1758303290763,1.2744491,115740.0,115730.0,2.09069496]
[1758303290968,1.2784491,115740.0,115730.0,2.09669496]
[1758303291663,1.2784491,115740.0,115730.0,1.75799063]
[1758303291866,1.2784491,115740.0,115730.0,2.09669496]
[1758303293060,1.2804491,115740.0,115730.0,2.09669496]
[1758303294462,1.61915343,115740.0,115730.0,0.09799063]
[1758303294863,1.61915343,115740.0,115730.0,1.50799063]
[1758303295361,1.61915343,115740.0,115730.0,1.48643063]
[1758303296560,1.2804491,115740.0,115730.0,1.48643063]
[1758303297665,0.4821691,115740.0,115730.0,1.48643063]
[1758303297861,1.2797691,115740.0,115730.0,1.82513496]
[1758303298164,0.4821691,115740.0,115730.0,1.82513496]
[1758303298466,1.2795291,115740.0,115730.0,1.82513496]
[1758303298667,0.4821691,115740.0,115730.0,1.82513496]
[1758303298960,1.2794491,115740.0,115730.0,1.82513496]
[1758303299165,1.2794491,115740.0,115730.0,1.48643063]
[1758303299366,1.2794491,115740.0,115730.0,1.82513496]
[1758303299560,1.2794091,115740.0,115730.0,1.83810496]
[1758303300367,1.2794091,115740.0,115730.0,1.82513496]
[1758303300569,1.2794091,115740.0,115730.0,1.48643063]
[1758303300770,0.4821691,115740.0,115730.0,1.82513496]
[1758303301164,1.2791291,115740.0,115730.0,1.48643063]
[1758303301470,1.61783343,115740.0,115730.0,1.48643063]
[1758303301661,1.61783343,115740.0,115730.0,0.07643063]
[1758303302060,1.61783343,115740.0,115730.0,0.09803063]
[1758303303175,1.2791291,115740.0,115730.0,0.09803063]
[1758303303363,1.2793291,115740.0,115730.0,0.09803063]
[1758303304867,0.4821691,115740.0,115730.0,0.09803063]
[1758303305065,1.2793291,115740.0,115730.0,0.43673496]
[1758303305260,0.4821691,115740.0,115730.0,0.43673496]
[1758303305467,0.1213691,115740.0,115730.0,0.53607156]
[1758303305671,0.9182891,115740.0,115730.0,0.53607156]
[1758303305866,0.1213691,115740.0,115730.0,0.53607156]
[1758303306064,0.1083491,115740.0,115730.0,0.53607156]
[1758303306372,0.9056291,115740.0,115730.0,0.53607156]
[1758303306567,0.9056291,115740.0,115730.0,0.89687156]
[1758303306871,0.9056291,115740.0,115730.0,0.55816723]
[1758303307078,0.9056291,115740.0,115730.0,0.89687156]
[1758303307570,0.009,115740.0,115730.0,1.48557589]
[1758303307772,0.8062,115740.0,115730.0,1.48557589]
[1758303307967,0.8062,115740.0,115730.0,1.14687156]
[1758303308162,0.82747,115740.0,115730.0,1.14687156]
[1758303309068,0.8062,115740.0,115730.0,1.14687156]
[1758303309471,0.009,115740.0,115730.0,1.48557589]
[1758303309780,0.009,115740.0,115730.0,1.59389198]
[1758303310077,0.0001,115770.0,115760.0,0.1209131]
[1758303310269,0.82057,115780.0,115770.0,0.1209057]
[1758303310574,0.82047,115780.0,115770.0,1.15911436]
[1758303310773,0.02127,115780.0,115770.0,1.15911436]
[1758303310982,0.82513,115790.0,115780.0,0.1208981]
[1758303311275,0.9113511,115790.0,115780.0,0.47939462]
[1758303311873,0.9113511,115790.0,115780.0,0.54775916]
[1758303312175,0.82503,115790.0,115780.0,0.54775916]
[1758303312366,0.9113511,115790.0,115780.0,0.54775916]
[1758303312766,0.9113511,115790.0,115780.0,0.55636522]
[1758303313174,0.9173511,115790.0,115780.0,0.55836522]
[1758303313677,0.9193511,115790.0,115780.0,0.55936522]
[1758303314683,0.008,115790.0,115780.0,0.55936522]
[1758303314981,0.008,115790.0,115780.0,0.92016522]
[1758303315976,0.1155916,115790.0,115780.0,0.92016522]
[1758303318479,0.1155916,115790.0,115780.0,0.58146089]
[1758303318680,0.1155916,115790.0,115780.0,0.92016522]
[1758303319384,0.1155916,115790.0,115780.0,0.58146089]
[1758303319582,0.1155916,115790.0,115780.0,0.92016522]
[1758303321786,0.02927,115790.0,115780.0,0.92016522]
[1758303322284,0.008,115790.0,115780.0,0.92016522]
[1758303322588,0.1155914,115790.0,115780.0,0.92016522]
[1758303324289,0.02927,115790.0,115780.0,0.92016522]
[1758303324494,0.008,115790.0,115780.0,0.92016522]
[1758303324681,0.008,115790.0,115780.0,1.17016522]
[1758303325891,0.008,115790.0,115780.0,1.97392522]
[1758303326088,0.008,115790.0,115780.0,1.17016522]
[1758303326390,0.008,115790.0,115780.0,1.97384522]
[1758303327593,0.008,115790.0,115780.0,1.17016522]
[1758303327794,0.008,115790.0,115780.0,1.97384522]
[1758303328293,0.008,115790.0,115780.0,1.17016522]
[1758303328495,0.008,115790.0,115780.0,1.97352522]
[1758303330390,0.008,115790.0,115780.0,1.17016522]
[1758303330583,0.008,115790.0,115780.0,1.97352522]
[1758303332697,0.008,115790.0,115780.0,1.63482089]
[1758303332897,0.008,115790.0,115780.0,1.97352522]
[1758303334190,0.008,115790.0,115780.0,1.97228522]
[1758303334690,0.0943214,115790.0,115780.0,0.83146089]
[1758303334998,0.1161714,115790.0,115780.0,1.72232522]
[1758303335392,0.1161714,115790.0,115780.0,0.92016522]
[1758303336595,0.02985,115790.0,115780.0,0.92016522]
[1758303337398,0.008,115790.0,115780.0,0.92016522]
[1758303338498,0.0943214,115790.0,115780.0,1.72184522]
[1758303338998,0.008,115790.0,115780.0,1.72184522]
[1758303341201,0.0943219,115790.0,115780.0,1.72140522]
[1758303341501,0.008,115790.0,115780.0,1.72140522]
[1758303341899,0.0943219,115790.0,115780.0,1.72140522]
[1758303342100,0.1161719,115790.0,115780.0,0.92016522]
[1758303342492,0.1301319,115790.0,115780.0,0.92016642]
[1758303342698,0.71883623,115790.0,115780.0,0.12136279]
[1758303342893,1.1810119,115790.0,115780.0,0.12136279]
[1758303343095,1.88051623,115790.0,115780.0,0.12136279]
[1758303345103,1.5416519,115790.0,115780.0,0.12136279]
[1758303345699,1.5416119,115790.0,115780.0,0.12136279]
[1758303347306,1.88031623,115790.0,115780.0,0.09115673]
[1758303348207,1.07963623,115790.0,115780.0,0.09115673]
[1758303348504,1.87975623,115790.0,115780.0,0.09115673]
[1758303350297,1.07963623,115790.0,115780.0,0.09115673]
[1758303350500,1.87935623,115790.0,115780.0,0.09115673]
[1758303350699,1.07963623,115790.0,115780.0,0.09115673]
[1758303351101,1.87931623,115790.0,115780.0,0.09115673]
[1758303351807,1.87906807,115790.0,115780.0,0.09115673]
[1758303352909,2.21752424,115790.0,115780.0,4e-08]
[1758303353094,2.21708424,115790.0,115780.0,4e-08]
[1758303353700,1.4264647,115790.0,115780.0,4e-08]
[1758303353906,2.2256247,115790.0,115780.0,4e-08]
[1758303354098,1.4264647,115790.0,115780.0,4e-08]
[1758303354298,2.2255447,115790.0,115780.0,4e-08]
[1758303354501,1.4264647,115790.0,115780.0,4e-08]
[1758303355103,2.2253847,115790.0,115780.0,4e-08]
[1758303357907,1.4264647,115790.0,115780.0,4e-08]
[1758303358108,2.2249047,115790.0,115780.0,4e-08]
[1758303358302,1.4264647,115790.0,115780.0,4e-08]
[1758303358504,2.2248247,115790.0,115780.0,4e-08]
[1758303358703,1.4264647,115790.0,115780.0,4e-08]
[1758303359106,2.2247847,115790.0,115780.0,4e-08]
[1758303360110,2.2245447,115790.0,115780.0,4e-08]
[1758303360410,1.4264647,115790.0,115780.0,4e-08]
[1758303360611,2.2245447,115790.0,115780.0,4e-08]
[1758303361902,1.4264647,115790.0,115780.0,4e-08]
[1758303362102,2.2243047,115790.0,115780.0,4e-08]
[1758303362308,1.4264647,115790.0,115780.0,4e-08]
[1758303362508,2.2242647,115790.0,115780.0,4e-08]
[1758303364516,1.4264647,115790.0,115780.0,4e-08]
[1758303364711,0.82938807,115790.0,115780.0,0.02301004]
[1758303364909,0.4909319,115790.0,115780.0,0.96277238]
[1758303365215,1.2886119,115790.0,115780.0,0.61146621]
[1758303365402,1.62706807,115790.0,115780.0,0.61146621]
[1758303365911,0.4909319,115790.0,115780.0,0.94992238]
[1758303366115,1.62702807,115790.0,115780.0,0.96277238]
[1758303366616,1.62702807,115790.0,115780.0,0.94992238]
[1758303366916,1.62702807,115790.0,115780.0,0.61146621]
[1758303368220,1.2885719,115790.0,115780.0,0.61146621]
[1758303368411,1.62702807,115790.0,115780.0,0.61146621]
[1758303368912,1.62702807,115790.0,115780.0,0.94992238]
[1758303369813,1.62702807,115790.0,115780.0,0.27301004]
[1758303370017,1.62702807,115790.0,115780.0,0.25000004]
[1758303370622,1.62702807,115790.0,115780.0,4e-08]
[1758303371321,1.96548424,115790.0,115780.0,4e-08]